fUSD/lending_fUSD_20250421
["ID","MTS","AMOUNT","RATE_DAILY","PERIOD"]
[358559455,1745261448361,-547.33,0.00043835,7]
[358559456,1745261448370,-528.50294025,0.00043835,7]
[358559457,1745261448380,-500.0,0.00043835,7]
[358559458,1745261448389,-550.66901227,0.00043835,7]
[358559459,1745261448398,-509.16568546,0.00043835,7]
[358559460,1745261448408,-500.0,0.00043835,7]
[358559461,1745261448417,-500.0,0.00043835,7]
[358559462,1745261448427,-500.0,0.00043835,7]
[358559463,1745261448436,-1344.01,0.00043835,7]
[358559464,1745261448445,-511.39605233,0.00043835,7]
[358559465,1745261448455,-515.35202144,0.00043835,7]
[358559466,1745261448464,-512.76993139,0.00043835,7]
[358559467,1745261448475,-558.8831218,0.00043835,7]
[358559468,1745261448484,-500.0,0.00043835,7]
[358559469,1745261448494,-500.0,0.00043835,7]
[358559470,1745261448503,-500.0,0.00043835,7]
[358559471,1745261448513,-500.0,0.00043835,7]
[358559472,1745261448522,-500.0,0.00043835,7]
[358559473,1745261448531,-575.38853831,0.00043835,7]
[358559474,1745261448541,-152.113761,0.00043835,14]
[358559475,1745261448550,-499.40560064,0.00043835,7]
[358559476,1745261448559,-151.0,0.00043835,14]
[358559477,1745261448568,-500.0,0.00043835,7]
[358559478,1745261448577,-519.67964926,0.00043835,7]
[358559479,1745261448586,-736.02,0.00043835,7]
[358559480,1745261448595,-500.0,0.00043835,7]
[358559481,1745261448604,-500.0,0.00043835,7]
[358559482,1745261448614,-589.33,0.00043835,7]
[358559483,1745261448623,-500.0,0.00043835,7]
[358559484,1745261448632,-500.0,0.00043835,7]
[358559485,1745261448641,-500.0,0.00043835,7]
[358559486,1745261448652,-500.0,0.00043835,7]
[358559487,1745261448663,-1174.35,0.00043835,7]
[358559488,1745261448672,-921.44,0.00043835,7]
[358559489,1745261448681,-1651.21,0.00043835,7]
[358559490,1745261448690,-1145.24,0.00043835,7]
[358559491,1745261448701,-514.31095016,0.00043835,7]
[358559492,1745261448710,-500.0,0.00043835,7]
[358559493,1745261448719,-500.0,0.00043835,7]
[358559494,1745261448728,-500.0,0.00043835,7]
[358559495,1745261448738,-500.0,0.00043835,7]
[358559496,1745261448748,-1557.13,0.00043835,7]
[358559497,1745261448757,-899.84,0.00043835,7]
[358559498,1745261448766,-2487.02,0.00043835,7]
[358559499,1745261448776,-500.0,0.00043835,7]
[358559500,1745261448785,-500.0,0.00043835,7]
[358559501,1745261448794,-500.0,0.00043835,7]
[358559502,1745261448803,-500.0,0.00043835,7]
[358559503,1745261448812,-500.0,0.00043835,7]
[358559504,1745261448822,-500.0,0.00043835,7]
[358559505,1745261448831,-500.0,0.00043835,7]
[358559506,1745261448840,-569.67769164,0.00043835,7]
[358559507,1745261448849,-542.74255012,0.00043835,7]
[358559508,1745261448859,-848.69,0.00043835,7]
[358559509,1745261448868,-500.0,0.00043835,7]
[358559510,1745261448877,-500.0,0.00043835,7]
[358559511,1745261448886,-811.85,0.00043835,7]
[358559512,1745261448896,-500.0,0.00043835,7]
[358559513,1745261448905,-796.86,0.00043835,7]
[358559514,1745261448914,-500.0,0.00043835,7]
[358559515,1745261448923,-738.58,0.00043835,7]
[358559516,1745261448932,-581.16156744,0.00043835,7]
[358559517,1745261448941,-1810.92,0.00043835,7]
[358559518,1745261448950,-500.0,0.00043835,7]
[358559519,1745261448959,-508.19358261,0.00043835,7]
[358559520,1745261448968,-500.0,0.00043835,7]
[358559521,1745261448978,-315.18854177,0.00043835,7]
[358559522,1745261448987,-500.0,0.00043835,7]
[358559523,1745261448995,-500.0,0.00043835,7]
[358559524,1745261449005,-500.0,0.00043835,7]
[358559525,1745261449014,-500.0,0.00043835,7]
[358559526,1745261449024,-1226.96,0.00043835,7]
[358559527,1745261449033,-500.0,0.00043835,7]
[358559528,1745261449042,-500.0,0.00043835,7]
[358559529,1745261449051,-153.681906,0.00043835,14]
[358559530,1745261449061,-500.0009124,0.00043835,7]
[358559531,1745261449070,-500.0,0.00043835,7]
[358559532,1745261449079,-643.64329807,0.00043835,7]
[358559533,1745261449088,-500.0,0.00043835,7]
[358559534,1745261449098,-508.80593065,0.00043835,7]
[358559535,1745261449107,-1589.17,0.00043835,7]
[358559536,1745261449116,-562.32915329,0.00043835,7]
[358559537,1745261449125,-500.0,0.00043835,7]
[358559538,1745261449134,-153.681906,0.00043835,14]
[358559539,1745261449143,-500.0,0.00043835,7]
[358559540,1745261449152,-526.39674069,0.00043835,7]
[358559541,1745261449161,-986.99,0.00043835,7]
[358559542,1745261449170,-500.0,0.00043835,7]
[358559543,1745261449180,-1498.68,0.00043835,7]
[358559544,1745261449189,-517.96380861,0.00043835,7]
[358559545,1745261449197,-319.929767,0.00043835,14]
[358559546,1745261449207,-500.0,0.00043835,7]
[358559547,1745261449215,-1491.56,0.00043835,7]
[358559548,1745261449225,-648.75,0.00043835,7]
[358559549,1745261449234,-500.0,0.00043835,7]
[358559550,1745261449243,-500.0,0.00043835,7]
[358559551,1745261449252,-607.63087373,0.00043835,7]
[358559552,1745261449261,-824.28,0.00043835,7]
[358559553,1745261449271,-500.0,0.00043835,7]
[358559554,1745261449280,-319.929767,0.00043835,14]
[358559555,1745261449289,-1485.17,0.00043835,7]
[358559556,1745261449298,-511.61757937,0.00043835,7]
[358559557,1745261449307,-604.18,0.00043835,7]
[358559558,1745261449317,-845.87,0.00043835,7]
[358559559,1745261449326,-494.91301486,0.00043835,7]
[358559560,1745261449336,-500.0,0.00043835,7]
[358559561,1745261449345,-500.0,0.00043835,7]
[358559562,1745261449355,-1568.57,0.00043835,7]
[358559563,1745261449364,-500.0,0.00043835,7]
[358559564,1745261449518,-500.0,0.00043835,7]
[358559565,1745261449529,-500.0,0.00043835,7]
[358559566,1745261449539,-527.76,0.00043835,7]
[358559567,1745261449548,-242.62,0.00043835,120]
[358559568,1745261449557,-500.0,0.00043835,7]
[358559569,1745261449567,-500.0,0.00043835,7]
[358559570,1745261449576,-500.0,0.00043835,7]
[358559571,1745261449586,-760.02,0.00043835,7]
[358559572,1745261449596,-1641.37,0.00043835,7]
[358559573,1745261449605,-516.48081853,0.00043835,7]
[358559574,1745261449615,-500.0,0.00043835,7]
[358559575,1745261449624,-500.0,0.00043835,7]
[358559576,1745261449634,-500.0,0.00043835,7]
[358559577,1745261449643,-500.0,0.00043835,7]
[358559578,1745261449655,-500.0,0.00043835,7]
[358559579,1745261449664,-500.0,0.00043835,7]
[358559580,1745261449673,-183.897924,0.00043835,14]
[358559581,1745261449683,-500.0,0.00043835,7]
[358559582,1745261449692,-500.0,0.00043835,7]
[358559583,1745261449702,-2017.74,0.00043835,7]
[358559584,1745261449711,-500.0,0.00043835,7]
[358559585,1745261449721,-500.0,0.00043835,7]
[358559586,1745261449730,-500.0,0.00043835,7]
[358559587,1745261449740,-480.73673154,0.00043835,7]
[358559588,1745261449749,-1081.09,0.00043835,7]
[358559589,1745261449758,-1065.81,0.00043835,7]
[358559590,1745261449768,-183.897924,0.00043835,14]
[358559591,1745261449777,-151.0,0.00043835,14]
[358559592,1745261449788,-511.63291399,0.00043835,7]
[358559593,1745261449797,-500.0,0.00043835,7]
[358559594,1745261449807,-500.0,0.00043835,7]
[358559595,1745261449816,-500.0,0.00043835,7]
[358559596,1745261449825,-500.0,0.00043835,7]
[358559597,1745261449835,-151.0,0.00043835,14]
[358559598,1745261449844,-500.0,0.00043835,7]
[358559599,1745261449854,-3027.3,0.00043835,7]
[358559600,1745261449863,-153.532334,0.00043835,14]
[358559601,1745261449872,-500.0,0.00043835,7]
[358559602,1745261449882,-500.0,0.00043835,7]
[358559603,1745261449891,-507.40607286,0.00043835,7]
[358559604,1745261449901,-500.0,0.00043835,7]
[358559605,1745261449910,-500.0,0.00043835,7]
[358559606,1745261449920,-537.79886844,0.00043835,7]
[358559607,1745261449929,-500.0,0.00043835,7]
[358559608,1745261449938,-500.0,0.00043835,7]
[358559609,1745261449947,-500.0,0.00043835,7]
[358559610,1745261449957,-500.0,0.00043835,7]
[358559611,1745261449966,-500.0,0.00043835,7]
[358559612,1745261449975,-225.16996177,0.00043835,7]
[358559613,1745261449984,-500.0,0.00043835,7]
[358559614,1745261449993,-1391.07,0.00043835,7]
[358559615,1745261450003,-500.0,0.00043835,7]
[358559616,1745261450012,-500.0,0.00043835,7]
[358559617,1745261450022,-500.0,0.00043835,7]
[358559618,1745261450031,-500.0,0.00043835,7]
[358559619,1745261450040,-500.0,0.00043835,7]
[358559620,1745261450050,-500.0,0.00043835,7]
[358559621,1745261450059,-500.0,0.00043835,7]
[358559622,1745261450068,-1173.59,0.00043835,7]
[358559623,1745261450078,-1583.83,0.00043835,7]
[358559624,1745261450087,-850.93,0.00043835,7]
[358559625,1745261450096,-500.0,0.00043835,7]
[358559626,1745261450106,-528.94503763,0.00043835,7]
[358559627,1745261450115,-500.0,0.00043835,7]
[358559628,1745261450125,-500.0,0.00043835,7]
[358559629,1745261450134,-500.0,0.00043835,7]
[358559630,1745261450143,-500.0,0.00043835,7]
[358559631,1745261450153,-500.0,0.00043835,7]
[358559632,1745261450162,-500.0,0.00043835,7]
[358559633,1745261450171,-500.0,0.00043835,7]
[358559634,1745261450181,-500.0,0.00043835,7]
[358559635,1745261450190,-685.38,0.00043835,7]
[358559636,1745261450199,-500.0,0.00043835,7]
[358559637,1745261450209,-500.0,0.00043835,7]
[358559638,1745261450218,-517.67,0.00043835,7]
[358559639,1745261450227,-500.0,0.00043835,7]
[358559640,1745261450237,-500.0,0.00043835,7]
[358559641,1745261450246,-500.0,0.00043835,7]
[358559642,1745261450255,-732.19,0.00043835,7]
[358559643,1745261450264,-500.0,0.00043835,7]
[358559644,1745261450273,-513.12425238,0.00043835,7]
[358559645,1745261450283,-500.0,0.00043835,7]
[358559646,1745261450292,-551.97794718,0.00043835,7]
[358559647,1745261450301,-523.01181868,0.00043835,7]
[358559648,1745261450311,-500.0,0.00043835,7]
[358559649,1745261450321,-500.0,0.00043835,7]
[358559650,1745261450330,-678.0,0.00043835,7]
[358559651,1745261450340,-678.0,0.00043835,7]
[358559652,1745261450349,-678.0,0.00043835,7]
[358559653,1745261450358,-678.0,0.00043835,7]
[358559654,1745261450367,-500.0,0.00043835,7]
[358559655,1745261450377,-678.0,0.00043835,7]
[358559656,1745261450387,-500.0,0.00043835,7]
[358559657,1745261450396,-678.0,0.00043835,7]
[358559658,1745261450405,-678.0,0.00043835,7]
[358559659,1745261450414,-678.0,0.00043835,7]
[358559660,1745261450424,-678.0,0.00043835,7]
[358559661,1745261450434,-678.0,0.00043835,7]
[358559662,1745261450444,-500.0,0.00043835,7]
[358559663,1745261450454,-678.0,0.00043835,7]
[358559664,1745261450463,-678.0,0.00043835,7]
[358559665,1745261450473,-500.0,0.00043835,7]
[358559666,1745261450482,-678.0,0.00043835,7]
[358559667,1745261450491,-678.0,0.00043835,7]
[358559668,1745261450501,-678.0,0.00043835,7]
[358559669,1745261450510,-678.0,0.00043835,7]
[358559670,1745261450520,-678.0,0.00043835,7]
[358559671,1745261450530,-524.33665358,0.00043835,7]
[358559672,1745261450539,-678.0,0.00043835,7]
[358559673,1745261450548,-500.0,0.00043835,7]
[358559674,1745261450558,-678.0,0.00043835,7]
[358559675,1745261450567,-1009.76,0.00043835,7]
[358559676,1745261450577,-678.0,0.00043835,7]
[358559677,1745261450587,-678.0,0.00043835,7]
[358559678,1745261450597,-678.0,0.00043835,7]
[358559679,1745261450607,-678.0,0.00043835,7]
[358559680,1745261450616,-678.0275067,0.00043835,7]
[358559681,1745261450626,-1706.45,0.00043835,7]
[358559682,1745261450635,-857.15,0.00043835,7]
[358559683,1745261450644,-500.0,0.00043835,7]
[358559684,1745261450657,-255.71604731,0.00043835,7]
[358559685,1745261450666,-522.93841972,0.00043835,7]
[358559686,1745261450675,-500.0,0.00043835,7]
[358559687,1745261450684,-500.0,0.00043835,120]
[358559688,1745261450693,-1308.36,0.00043835,7]
[358559689,1745261450704,-500.0,0.00043835,7]
[358559690,1745261450713,-500.0,0.00043835,7]
[358559691,1745261450723,-500.0,0.00043835,7]
[358559692,1745261450733,-551.86,0.00043835,7]
[358559693,1745261450742,-1469.516003,0.00043835,14]
[358559694,1745261450752,-500.0,0.00043835,7]
[358559695,1745261450761,-500.0,0.00043835,7]
[358559696,1745261450770,-1469.516003,0.00043835,14]
[358559697,1745261450779,-500.0,0.00043835,7]
[358559698,1745261450788,-500.0,0.00043835,7]
[358559699,1745261450798,-500.0,0.00043835,7]
[358559700,1745261450807,-511.45850685,0.00043835,7]
[358559701,1745261450816,-500.0,0.00043835,7]
[358559702,1745261450825,-512.93811518,0.00043835,7]
[358559703,1745261450834,-500.0,0.00043835,7]
[358559704,1745261450843,-500.0,0.00043835,7]
[358559705,1745261450853,-570.58786029,0.00043835,7]
[358559706,1745261450862,-500.0,0.00043835,7]
[358559707,1745261450871,-2029.45,0.00043835,7]
[358559708,1745261450881,-1000.0,0.00043835,7]
[358559709,1745261450890,-500.0,0.00043835,7]
[358559710,1745261450899,-151.0,0.00043835,14]
[358559711,1745261450908,-551.27735503,0.00043835,7]
[358559712,1745261450918,-500.0,0.00043835,7]
[358559713,1745261450927,-500.0,0.00043835,7]
[358559714,1745261450937,-500.0,0.00043835,7]
[358559715,1745261450946,-541.58487693,0.00043835,7]
[358559716,1745261450955,-151.0,0.00043835,14]
[358559717,1745261450964,-164.83594,0.00043835,14]
[358559718,1745261450975,-1045.82,0.00043835,7]
[358559719,1745261450984,-500.0,0.00043835,7]
[358559720,1745261450993,-500.0,0.00043835,7]
[358559721,1745261451003,-549.37538786,0.00043835,7]
[358559722,1745261451013,-500.0,0.00043835,7]
[358559723,1745261451022,-535.53198131,0.00043835,7]
[358559724,1745261451031,-500.0,0.00043835,7]
[358559725,1745261451041,-164.83594,0.00043835,14]
[358559726,1745261451051,-500.0,0.00043835,7]
[358559727,1745261451060,-500.0,0.00043835,7]
[358559728,1745261451070,-500.0,0.00043835,7]
[358559729,1745261451079,-500.0,0.00043835,7]
[358559730,1745261451088,-500.0,0.00043835,7]
[358559731,1745261451098,-500.0,0.00043835,7]
[358559732,1745261451107,-502.57506222,0.00043835,7]
[358559733,1745261451117,-500.0,0.00043835,7]
[358559734,1745261451126,-500.0,0.00043835,7]
[358559735,1745261451135,-500.0,0.00043835,7]
[358559736,1745261451144,-500.0,0.00043835,7]
[358559737,1745261451154,-522.23935088,0.00043835,7]
[358559738,1745261451163,-500.0,0.00043835,7]
[358559739,1745261451173,-500.0,0.00043835,7]
[358559740,1745261451182,-500.0,0.00043835,7]
[358559741,1745261451191,-500.0,0.00043835,7]
[358559742,1745261451201,-523.19346821,0.00043835,7]
[358559743,1745261451210,-500.0,0.00043835,7]
[358559744,1745261451219,-1168.35,0.00043835,7]
[358559745,1745261451229,-500.0,0.00043835,7]
[358559746,1745261451238,-500.0,0.00043835,7]
[358559747,1745261451247,-500.0,0.00043835,7]
[358559748,1745261451257,-500.0,0.00043835,7]
[358559749,1745261451266,-500.0,0.00043835,7]
[358559750,1745261451277,-940.65,0.00043835,7]
[358559751,1745261451286,-500.0,0.00043835,7]
[358559752,1745261451296,-500.0,0.00043835,7]
[358559753,1745261451305,-980.15,0.00043835,7]
[358559754,1745261451316,-500.0,0.00043835,7]
[358559755,1745261451325,-1206.68,0.00043835,7]
[358559756,1745261451334,-500.0,0.00043835,7]
[358559757,1745261451344,-500.0,0.00043835,7]
[358559758,1745261451353,-500.0,0.00043835,7]
[358559759,1745261451362,-500.0,0.00043835,7]
[358559760,1745261451372,-2000.0,0.00043835,7]
[358559761,1745261451381,-151.0,0.00043835,14]
[358559762,1745261451391,-500.0,0.00043835,7]
[358559763,1745261451400,-872.51,0.00043835,7]
[358559764,1745261451409,-529.81360383,0.00043835,7]
[358559765,1745261451418,-500.0,0.00043835,7]
[358559766,1745261451427,-500.0,0.00043835,7]
[358559767,1745261451436,-500.0,0.00043835,7]
[358559768,1745261451445,-500.0,0.00043835,7]
[358559769,1745261451454,-500.0,0.00043835,7]
[358559770,1745261451464,-500.0,0.00043835,7]
[358559771,1745261451473,-500.0,0.00043835,7]
[358559772,1745261451618,-500.0,0.00043835,7]
[358559773,1745261451628,-500.0,0.00043835,7]
[358559774,1745261451637,-500.0,0.00043835,7]
[358559775,1745261451646,-500.0,0.00043835,7]
[358559776,1745261451658,-556.56704273,0.00043835,7]
[358559777,1745261451667,-500.0,0.00043835,7]
[358559778,1745261451676,-548.8843868,0.00043835,7]
[358559779,1745261451685,-500.0,0.00043835,7]
[358559780,1745261451695,-211.67294945,0.00043835,7]
[358559781,1745261451704,-500.0,0.00043835,7]
[358559782,1745261451713,-500.0,0.00043835,7]
[358559783,1745261451722,-1065.21,0.00043835,7]
[358559784,1745261451733,-500.0,0.00043835,7]
[358559785,1745261451742,-2581.84,0.00043835,7]
[358559786,1745261451751,-500.0,0.00043835,7]
[358559787,1745261451760,-500.0,0.00043835,7]
[358559788,1745261451768,-500.0,0.00043835,7]
[358559789,1745261451778,-500.0,0.00043835,7]
[358559790,1745261451786,-500.0,0.00043835,7]
[358559791,1745261451795,-507.50073218,0.00043835,7]
[358559792,1745261451804,-500.0,0.00043835,7]
[358559793,1745261451814,-500.0,0.00043835,7]
[358559794,1745261451824,-500.0,0.00043835,7]
[358559795,1745261451833,-500.0,0.00043835,7]
[358559796,1745261451841,-500.0,0.00043835,7]
[358559797,1745261451850,-500.0,0.00043835,7]
[358559798,1745261451859,-500.0,0.00043835,7]
[358559799,1745261451868,-500.0,0.00043835,7]
[358559800,1745261451877,-740.41,0.00043835,7]
[358559801,1745261451886,-500.0,0.00043835,7]
[358559802,1745261451895,-500.0,0.00043835,7]
[358559803,1745261451904,-549.04739793,0.00043835,7]
[358559804,1745261451914,-500.0,0.00043835,7]
[358559805,1745261451923,-500.0,0.00043835,7]
[358559806,1745261451932,-271.77566511,0.00043835,7]
[358559807,1745261451941,-545.22833624,0.00043835,7]
[358559808,1745261451950,-842.67,0.00043835,7]
[358559809,1745261451959,-526.90288948,0.00043835,7]
[358559810,1745261451968,-574.9,0.00043835,7]
[358559811,1745261451978,-151.0,0.00043835,14]
[358559812,1745261451987,-500.0,0.00043835,7]
[358559813,1745261451996,-500.0,0.00043835,7]
[358559814,1745261452005,-500.0,0.00043835,7]
[358559815,1745261452015,-500.0,0.00043835,7]
[358559816,1745261452026,-500.0,0.00043835,7]
[358559817,1745261452035,-500.0,0.00043835,7]
[358559818,1745261452044,-151.0,0.00043835,14]
[358559819,1745261452053,-2437.66,0.00043835,7]
[358559820,1745261452062,-151.0,0.00043835,14]
[358559821,1745261452071,-500.0,0.00043835,7]
[358559822,1745261452081,-500.0,0.00043835,7]
[358559823,1745261452090,-500.0,0.00043835,7]
[358559824,1745261452099,-500.0,0.00043835,7]
[358559825,1745261452108,-500.0,0.00043835,7]
[358559826,1745261452117,-500.0,0.00043835,7]
[358559827,1745261452127,-500.0,0.00043835,7]
[358559828,1745261452135,-500.0,0.00043835,7]
[358559829,1745261452145,-500.0,0.00043835,7]
[358559830,1745261452154,-261.408677,0.00043835,14]
[358559831,1745261452163,-500.0,0.00043835,7]
[358559832,1745261452172,-540.96,0.00043835,7]
[358559833,1745261452181,-500.0,0.00043835,7]
[358559834,1745261452191,-500.0,0.00043835,7]
[358559835,1745261452200,-261.408677,0.00043835,14]
[358559836,1745261452209,-500.0,0.00043835,7]
[358559837,1745261452219,-500.0,0.00043835,7]
[358559838,1745261452228,-500.0,0.00043835,7]
[358559839,1745261452238,-500.0,0.00043835,7]
[358559840,1745261452247,-500.0,0.00043835,7]
[358559841,1745261452256,-500.0,0.00043835,7]
[358559842,1745261452265,-515.85028159,0.00043835,7]
[358559843,1745261452276,-328.91020263,0.00043835,7]
[358559844,1745261452285,-805.84,0.00043835,7]
[358559845,1745261452295,-500.0,0.00043835,7]
[358559846,1745261452304,-500.0,0.00043835,7]
[358559847,1745261452323,-500.0,0.00043835,7]
[358559848,1745261452334,-500.0,0.00043835,7]
[358559849,1745261452344,-500.0,0.00043835,7]
[358559850,1745261452354,-500.0,0.00043835,7]
[358559851,1745261452364,-500.0,0.00043835,7]
[358559852,1745261452373,-517.25861802,0.00043835,7]
[358559853,1745261452383,-500.0,0.00043835,7]
[358559854,1745261452393,-500.0,0.00043835,7]
[358559855,1745261452402,-2037.64,0.00043835,7]
[358559856,1745261452412,-500.0,0.00043835,7]
[358559857,1745261452422,-500.0,0.00043835,7]
[358559858,1745261452431,-500.0,0.00043835,7]
[358559859,1745261452441,-500.0,0.00043835,7]
[358559860,1745261452451,-500.0,0.00043835,7]
[358559861,1745261452460,-151.0,0.00043835,14]
[358559862,1745261452470,-1533.01,0.00043835,7]
[358559863,1745261452480,-500.0,0.00043835,7]
[358559864,1745261452490,-527.29942996,0.00043835,7]
[358559865,1745261452500,-500.0,0.00043835,7]
[358559866,1745261452509,-500.0,0.00043835,7]
[358559867,1745261452519,-500.0,0.00043835,7]
[358559868,1745261452529,-500.0,0.00043835,7]
[358559869,1745261452538,-530.89504373,0.00043835,7]
[358559870,1745261452569,-500.0,0.00043835,7]
[358559871,1745261452588,-522.23794724,0.00043835,7]
[358559872,1745261452609,-894.4,0.00043835,7]
[358559873,1745261452633,-989.17,0.00043835,7]
[358559874,1745261452650,-500.0,0.00043835,7]
[358559875,1745261452671,-536.07576053,0.00043835,7]
[358559876,1745261452690,-500.0,0.00043835,7]
[358559877,1745261452713,-500.0,0.00043835,7]
[358559878,1745261452733,-500.0,0.00043835,7]
[358559879,1745261452755,-500.0,0.00043835,7]
[358559880,1745261452775,-407.45219783,0.00043835,7]
[358559881,1745261452788,-500.0,0.00043835,7]
[358559882,1745261452808,-500.0,0.00043835,7]
[358559883,1745261452821,-519.68035074,0.00043835,7]
[358559884,1745261452841,-500.0,0.00043835,7]
[358559885,1745261452855,-500.0,0.00043835,7]
[358559886,1745261452872,-500.0,0.00043835,7]
[358559887,1745261452890,-300.0,0.00043835,7]
[358559888,1745261452908,-468.214058,0.00043835,14]
[358559889,1745261452925,-1038.28,0.00043835,7]
[358559890,1745261452942,-508.92842956,0.00043835,7]
[358559891,1745261452958,-1437.38,0.00043835,7]
[358559892,1745261452973,-500.0,0.00043835,7]
[358559893,1745261452989,-500.0,0.00043835,7]
[358559894,1745261453004,-736.68,0.00043835,7]
[358559895,1745261453019,-500.0,0.00043835,7]
[358559896,1745261453034,-500.0,0.00043835,7]
[358559897,1745261453049,-274.417181,0.00043835,14]
[358559898,1745261453064,-151.0,0.00043835,14]
[358559899,1745261453078,-500.0,0.00043835,7]
[358559900,1745261453095,-500.0,0.00043835,7]
[358559901,1745261453110,-500.0,0.00043835,7]
[358559902,1745261453125,-468.214058,0.00043835,14]
[358559903,1745261453140,-500.0,0.00043835,7]
[358559904,1745261453155,-274.417181,0.00043835,14]
[358559905,1745261453170,-500.0,0.00043835,7]
[358559906,1745261453185,-500.0,0.00043835,7]
[358559907,1745261453200,-507.27195687,0.00043835,7]
[358559908,1745261453215,-500.0,0.00043835,7]
[358559909,1745261453230,-500.0,0.00043835,7]
[358559910,1745261453245,-500.0,0.00043835,7]
[358559911,1745261453259,-3342.96,0.00043835,7]
[358559912,1745261453274,-1451.64,0.00043835,7]
[358559913,1745261453289,-500.0,0.00043835,7]
[358559914,1745261453304,-1164.05,0.00043835,7]
[358559915,1745261453319,-500.0,0.00043835,7]
[358559916,1745261453333,-500.0,0.00043835,7]
[358559917,1745261453348,-298.908777,0.00043835,14]
[358559918,1745261453364,-500.0,0.00043835,7]
[358559919,1745261453379,-500.0,0.00043835,7]
[358559920,1745261453393,-500.0,0.00043835,7]
[358559921,1745261453408,-697.72,0.00043835,7]
[358559922,1745261453423,-500.0,0.00043835,7]
[358559923,1745261453439,-1740.68,0.00043835,7]
[358559924,1745261453453,-500.0,0.00043835,7]
[358559925,1745261453469,-500.0,0.00043835,7]
[358559926,1745261453483,-500.0,0.00043835,7]
[358559927,1745261453498,-500.0,0.00043835,7]
[358559928,1745261453513,-2907.22,0.00043835,7]
[358559929,1745261453527,-500.0,0.00043835,7]
[358559930,1745261453542,-580.4556801,0.00043835,7]
[358559931,1745261453557,-470.36159641,0.00043835,7]
[358559932,1745261453571,-500.0,0.00043835,7]
[358559933,1745261453586,-500.0,0.00043835,7]
[358559934,1745261453601,-690.4,0.00043835,7]
[358559935,1745261453614,-500.0,0.00043835,7]
[358559936,1745261453629,-500.0,0.00043835,7]
[358559937,1745261453644,-500.0,0.00043835,7]
[358559938,1745261453662,-250.0,0.00043835,7]
[358559939,1745261453677,-1062.56,0.00043835,7]
[358559940,1745261453691,-1796.43,0.00043835,7]
[358559941,1745261453706,-500.0,0.00043835,7]
[358559942,1745261453720,-500.0,0.00043835,7]
[358559943,1745261453735,-1989.66,0.00043835,7]
[358559944,1745261453749,-523.5591838,0.00043835,7]
[358559945,1745261453764,-500.0,0.00043835,7]
[358559946,1745261453779,-500.0,0.00043835,7]
[358559947,1745261453793,-702.97,0.00043835,7]
[358559948,1745261453807,-500.0,0.00043835,7]
[358559949,1745261453821,-2497.77,0.00043835,7]
[358559950,1745261453835,-1022.34,0.00043835,7]
[358559951,1745261453851,-500.0,0.00043835,7]
[358559952,1745261453864,-629.62,0.00043835,7]
[358559953,1745261453874,-500.0,0.00043835,30]
[358559954,1745261453883,-500.0,0.00043835,7]